[Event "Skalica SCHAEFFLER Open 2019"]
[Site "Skalica"]
[Date "2019.08.26"]
[Round "2.9"]
[White "Londin, Lukas Vojtech"]
[Black "Bartos, Bohumil"]
[Result "1-0"]
[ECO "B12"]
[WhiteElo "1415"]
[BlackElo "1548"]
[Annotator "NA RC"]
[PlyCount "63"]
[EventDate "2019.08.25"]
[EventType "swiss"]
[EventCountry "SVK"]
[SourceTitle "playchess.com"]
[Source "ChessBase"]
[SourceQuality "1"]
[TimeControl "40/5400+30:1800+30"]

1. e4 {[%emt 0:00:00]} c6 {[%emt 0:00:00]} 2. d4 {[%emt 0:00:04]} d5 {[%emt 0:00:00]} 3. f3 {[%emt 0:00:30]} Qc7 {[%emt 0:02:46]} 4. Nc3 {[%emt 0:00:38]} e6 {[%emt 0:00:47]} 5. Be3 {[%emt 0:01:13]} Nd7 {[%emt 0:02:34]} 6. a3 {[%emt 0:04:12]} a5 {[%emt 0:02:09]} 7. exd5 {[%emt 0:02:06]} exd5 {[%emt 0:01:03]} 8. Bd3 {[%emt 0:00:28]} Bd6 {[%emt 0:01:22]} 9. g3 {[%emt 0:00:25]} Ndf6 {[%emt 0:01:48]} 10. Nge2 {[%emt 0:01:43]} Ne7 {[%emt 0:03:33]} 11. Bf4 {[%emt 0:01:38]} Ng6 {[%emt 0:02:54]} 12. Bxd6 {[%emt 0:00:17]} Qxd6 {[%emt 0:00:09]} 13. Qd2 {[%emt 0:00:55]} O-O {[%emt 0:03:06]} 14. O-O-O {[%emt 0:01:56]} b5 {[%emt 0:00:30]} 15. h4 {[%emt 0:01:21]} b4 {[%emt 0:01:33]} 16. Na4 {[%emt 0:00:00]} bxa3 {[%emt 0:00:36]} 17. b3 {[%emt 0:00:00]} Qb4 {[%emt 0:08:43]} 18. Qxb4 {[%emt 0:01:03]} axb4 {[%emt 0:00:08]} 19. h5 {[%emt 0:00:13]} Ne7 {[%emt 0:00:54]} 20. g4 {[%emt 0:00:29]} g6 {[%emt 0:05:08]} 21. Nf4 {[%emt 0:01:33]} Nxg4 {[%emt 0:05:16]} 22. fxg4 {[%emt 0:00:17]} Bxg4 {[%emt 0:04:12]} 23. Rde1 {[%emt 0:00:30]} Nf5 {[%emt 0:00:30]} 24. Rhg1 {[%emt 0:00:22]} Nxd4 {[%emt 0:03:48]} 25. Rxg4 {[%emt 0:00:30]} c5 {[%emt 0:01:25]} 26. Nxd5 {[%emt 0:00:29]} Ra7 {[%emt 0:02:00]} 27. h6 {[%emt 0:01:16]} Rfa8 {[%emt 0:00:20]} 28. Nf6+ {[%emt 0:00:13]} Kh8 {[%emt 0:00:24]} 29. Rge4 {[%emt 0:00:12]} Ne6 {[%emt 0:00:33]} 30. Bc4 {[%emt 0:00:09]} Rxa4 {[%emt 0:02:36]} 31. bxa4 {[%emt 0:00:12]} Rxa4 {[%emt 0:01:11]} 32. Bxe6 {[%emt 0:00:07]} 1-0

[Event "Skalica SCHAEFFLER Open 2019"]
[Site "Skalica"]
[Date "2019.08.26"]
[Round "3.1"]
[White "Palka, Miroslav"]
[Black "Fizerova, Lucie"]
[Result "1/2-1/2"]
[ECO "A36"]
[WhiteElo "1869"]
[BlackElo "1563"]
[Annotator "NA"]
[PlyCount "95"]
[EventDate "2019.08.25"]
[EventType "swiss"]
[EventCountry "SVK"]
[SourceTitle "playchess.com"]
[Source "ChessBase"]
[SourceQuality "1"]
[TimeControl "40/5400+30:1800+30"]

1. c4 {[%emt 0:00:00]} c5 {[%emt 0:06:29]} 2. Nc3 {[%emt 0:00:00]} Nc6 {[%emt 0:00:05]} 3. g3 {[%emt 0:00:00]} g6 {[%emt 0:00:07]} 4. Bg2 {[%emt 0:00:09]} Bg7 {[%emt 0:00:11]} 5. e4 {[%emt 0:00:34]} e5 {[%emt 0:00:08]} 6. d3 {[%emt 0:00:12]} d6 {[%emt 0:00:20]} 7. Nge2 {[%emt 0:00:15]} Nge7 {[%emt 0:00:23]} 8. O-O {[%emt 0:00:16]} O-O {[%emt 0:00:09]} 9. h3 {[%emt 0:00:44]} Kh8 {[%emt 0:01:02]} 10. Kh2 {[%emt 0:00:15]} a6 {[%emt 0:01:12]} 11. Be3 {[%emt 0:00:13]} Nd4 {[%emt 0:00:37]} 12. Qd2 {[%emt 0:00:37]} Rb8 {[%emt 0:03:13]} 13. f4 {[%emt 0:00:10]} f5 {[%emt 0:05:06]} 14. fxe5 {[%emt 0:00:27]} dxe5 {[%emt 0:00:24]} 15. Nd5 {[%emt 0:01:19]} Nxd5 {[%emt 0:04:25]} 16. cxd5 {[%emt 0:00:36]} b6 {[%emt 0:01:32]} 17. Nxd4 {[%emt 0:01:51]} cxd4 {[%emt 0:02:11]} 18. Bh6 {[%emt 0:00:19]} Rb7 {[%emt 0:07:08]} 19. Bxg7+ {[%emt 0:02:53]} Kxg7 {[%emt 0:00:20]} 20. Rac1 {[%emt 0:01:51]} Rc7 {[%emt 0:12:11]} 21. Rxc7+ {[%emt 0:00:27]} Qxc7 {[%emt 0:00:02]} 22. Rc1 {[%emt 0:00:54]} Qd8 {[%emt 0:00:42]} 23. Qc2 {[%emt 0:02:19]} Kh8 {[%emt 0:04:27]} 24. Qe2 {[%emt 0:03:14]} f4 {[%emt 0:03:35]} 25. gxf4 {[%emt 0:04:46]} Rxf4 {[%emt 0:01:08]} 26. Rf1 {[%emt 0:02:00]} Qf6 {[%emt 0:01:05]} 27. Rf3 {[%emt 0:01:24]} Rxf3 {[%emt 0:00:00]} 28. Qxf3 {[%emt 0:01:13]} Qxf3 {[%emt 0:00:40]} 29. Bxf3 {[%emt 0:02:25]} h5 {[%emt 0:02:14]} 30. h4 {[%emt 0:01:18]} Kg8 {[%emt 0:00:58]} 31. Bd1 {[%emt 0:02:18]} Bd7 {[%emt 0:00:21]} 32. Bb3 {[%emt 0:00:30]} Kf8 {[%emt 0:00:30]} 33. Kg3 {[%emt 0:00:30]} Ke7 {[%emt 0:00:30]} 34. Kf2 {[%emt 0:00:30]} Kd6 {[%emt 0:00:30]} 35. Bd1 {[%emt 0:00:30]} Bb5 {[%emt 0:01:37]} 36. Ke2 {[%emt 0:00:23]} Bd7 {[%emt 0:02:36]} 37. Kd2 {[%emt 0:00:29]} b5 {[%emt 0:02:04]} 38. Bf3 {[%emt 0:02:29]} a5 {[%emt 0:01:07]} 39. Bg2 {[%emt 0:00:35]} Ke7 {[%emt 0:02:51]} 40. a3 {[%emt 0:01:59]} Kf6 {[%emt 0:01:17]} 41. b4 {[%emt 0:32:27]} a4 {[%emt 0:31:04]} 42. Ke2 {[%emt 0:00:20]} g5 {[%emt 0:01:22]} 43. hxg5+ {[%emt 0:00:28]} Kxg5 {[%emt 0:00:10]} 44. Kf2 {[%emt 0:00:39]} Kf4 {[%emt 0:01:21]} 45. Bf3 {[%emt 0:03:10]} h4 {[%emt 0:00:30]} 46. Bh5 {[%emt 0:00:30]} Kg5 {[%emt 0:00:51]} 47. Bf7 {[%emt 0:04:21]} Kf6 {[%emt 0:00:30]} 48. Bh5 {[%emt 0:00:30]} 1/2-1/2

[Event "Skalica SCHAEFFLER Open 2019"]
[Site "Skalica"]
[Date "2019.08.26"]
[Round "3.2"]
[White "Delgerdalai, Bayarjavkhlan"]
[Black "Skreko, Igor"]
[Result "0-1"]
[ECO "B95"]
[WhiteElo "1460"]
[BlackElo "1725"]
[Annotator "NA"]
[PlyCount "106"]
[EventDate "2019.08.25"]
[EventType "swiss"]
[EventCountry "SVK"]
[SourceTitle "playchess.com"]
[Source "ChessBase"]
[SourceQuality "1"]
[TimeControl "40/5400+30:1800+30"]

1. e4 {[%emt 0:00:00]} c5 {[%emt 0:00:00]} 2. Nf3 {[%emt 0:00:00]} d6 {[%emt 0:00:00]} 3. d4 {[%emt 0:00:00]} cxd4 {[%emt 0:00:00]} 4. Nxd4 {[%emt 0:00:02]} Nf6 {[%emt 0:00:00]} 5. Nc3 {[%emt 0:00:14]} a6 {[%emt 0:00:00]} 6. Bg5 {[%emt 0:00:37]} e6 {[%emt 0:00:00]} 7. Be2 {[%emt 0:01:02]} Be7 {[%emt 0:00:01]} 8. Qd2 {[%emt 0:00:54]} Qc7 {[%emt 0:01:12]} 9. O-O {[%emt 0:00:37]} h6 {[%emt 0:01:27]} 10. Be3 {[%emt 0:00:25]} Nc6 {[%emt 0:00:24]} 11. f4 {[%emt 0:01:25]} Rb8 {[%emt 0:03:07]} 12. a4 {[%emt 0:01:20]} O-O {[%emt 0:00:36]} 13. Bf3 {[%emt 0:02:11]} Bd7 {[%emt 0:00:45]} 14. Rae1 {[%emt 0:01:41]} Rfc8 {[%emt 0:02:20]} 15. Nxc6 {[%emt 0:02:33]} Bxc6 {[%emt 0:00:23]} 16. f5 {[%emt 0:03:05]} e5 {[%emt 0:02:02]} 17. Bf2 {[%emt 0:05:05]} b5 {[%emt 0:02:47]} 18. axb5 {[%emt 0:00:32]} axb5 {[%emt 0:00:07]} 19. Nb1 {[%emt 0:09:01]} b4 {[%emt 0:02:52]} 20. Re3 {[%emt 0:02:59]} Nd7 {[%emt 0:08:58]} 21. Rb3 {[%emt 0:04:38]} Bg5 {[%emt 0:02:07]} 22. Be3 {[%emt 0:06:05]} Ba4 {[%emt 0:03:17]} 23. Bxg5 {[%emt 0:04:12]} Bxb3 {[%emt 0:01:27]} 24. Bxh6 {[%emt 0:03:43]} gxh6 {[%emt 0:01:17]} 25. cxb3 {[%emt 0:02:34]} Kh7 {[%emt 0:02:57]} 26. Rd1 {[%emt 0:09:20]} Rb6 {[%emt 0:02:48]} 27. Qd5 {[%emt 0:03:26]} Qc5+ {[%emt 0:00:56]} 28. Qxc5 {[%emt 0:00:40]} Nxc5 {[%emt 0:01:47]} 29. Nd2 {[%emt 0:01:05]} Ra6 {[%emt 0:01:58]} 30. Be2 {[%emt 0:07:21]} Ra2 {[%emt 0:04:14]} 31. Rb1 {[%emt 0:02:29]} Rca8 {[%emt 0:04:27]} 32. Kf2 {[%emt 0:03:52]} Ra1 {[%emt 0:07:56]} 33. Rxa1 {[%emt 0:00:41]} Rxa1 {[%emt 0:00:02]} 34. Bc4 {[%emt 0:00:53]} Kg7 {[%emt 0:01:24]} 35. Ke2 {[%emt 0:02:11]} Ra2 {[%emt 0:03:09]} 36. Bd5 {[%emt 0:00:56]} Rxb2 {[%emt 0:01:18]} 37. Ke3 {[%emt 0:00:29]} Kf6 {[%emt 0:02:34]} 38. Ke2 {[%emt 0:01:59]} h5 {[%emt 0:03:23]} 39. h4 {[%emt 0:01:14]} Nd7 {[%emt 0:03:48]} 40. Ke3 {[%emt 0:01:19]} Nb6 {[%emt 0:01:18]} 41. Bc6 {[%emt 0:30:36]} Rc2 {[%emt 0:35:34]} 42. Bb5 {[%emt 0:00:48]} Rc3+ {[%emt 0:01:37]} 43. Kf2 {[%emt 0:01:03]} Rc2 {[%emt 0:00:25]} 44. Ke2 {[%emt 0:00:37]} d5 {[%emt 0:01:30]} 45. Bd3 {[%emt 0:01:06]} Rb2 {[%emt 0:00:39]} 46. Ke3 {[%emt 0:00:56]} dxe4 {[%emt 0:03:47]} 47. Bxe4 {[%emt 0:00:29]} Nc8 {[%emt 0:04:26]} 48. Bd5 {[%emt 0:05:01]} Nd6 {[%emt 0:01:53]} 49. Ne4+ {[%emt 0:01:48]} Nxe4 {[%emt 0:00:55]} 50. Bxe4 {[%emt 0:00:59]} Rxb3+ {[%emt 0:00:19]} 51. Kd2 {[%emt 0:00:53]} Rb2+ {[%emt 0:00:53]} 52. Kd3 {[%emt 0:00:59]} Rf2 {[%emt 0:00:56]} 53. Ke3 {[%emt 0:01:08]} Rxf5 {[%emt 0:00:44]} 0-1

[Event "Skalica SCHAEFFLER Open 2019"]
[Site "Skalica"]
[Date "2019.08.26"]
[Round "3.3"]
[White "Hrdlicka, Martin"]
[Black "Londin, Lukas Vojtech"]
[Result "0-1"]
[ECO "B00"]
[WhiteElo "1661"]
[BlackElo "1415"]
[Annotator "NA"]
[PlyCount "64"]
[EventDate "2019.08.25"]
[EventType "swiss"]
[EventCountry "SVK"]
[SourceTitle "playchess.com"]
[Source "ChessBase"]
[SourceQuality "1"]
[TimeControl "40/5400+30:1800+30"]

1. e4 {[%emt 0:00:00]} b6 {[%emt 0:00:00]} 2. d4 {[%emt 0:00:00]} e6 {[%emt 0:00:00]} 3. Nc3 {[%emt 0:00:19]} Bb7 {[%emt 0:00:00]} 4. Nf3 {[%emt 0:00:28]} Bb4 {[%emt 0:00:49]} 5. Bd3 {[%emt 0:00:23]} Nf6 {[%emt 0:00:29]} 6. Qe2 {[%emt 0:00:29]} c5 {[%emt 0:00:18]} 7. Bd2 {[%emt 0:02:36]} Bxc3 {[%emt 0:00:32]} 8. Bxc3 {[%emt 0:03:19]} c4 {[%emt 0:00:08]} 9. Bxc4 {[%emt 0:00:59]} Nxe4 {[%emt 0:00:08]} 10. Bb4 {[%emt 0:06:22]} d6 {[%emt 0:01:53]} 11. O-O {[%emt 0:02:09]} O-O {[%emt 0:00:15]} 12. Bd3 {[%emt 0:01:11]} Nf6 {[%emt 0:00:12]} 13. c4 {[%emt 0:04:41]} Nc6 {[%emt 0:00:59]} 14. Bd2 {[%emt 0:01:30]} Ne7 {[%emt 0:05:21]} 15. b4 {[%emt 0:03:21]} Qc7 {[%emt 0:07:05]} 16. Rfc1 {[%emt 0:01:06]} Rac8 {[%emt 0:01:24]} 17. a4 {[%emt 0:01:14]} Ba6 {[%emt 0:01:56]} 18. b5 {[%emt 0:02:33]} Bb7 {[%emt 0:00:07]} 19. a5 {[%emt 0:00:50]} Ng6 {[%emt 0:04:49]} 20. Qe3 {[%emt 0:12:26]} Qd7 {[%emt 0:00:54]} 21. Ra2 {[%emt 0:14:34]} Ra8 {[%emt 0:03:58]} 22. a6 {[%emt 0:01:28]} Bxf3 {[%emt 0:00:00]} 23. Qxf3 {[%emt 0:00:12]} Rac8 {[%emt 0:00:31]} 24. Rac2 {[%emt 0:03:24]} e5 {[%emt 0:03:16]} 25. c5 {[%emt 0:08:23]} dxc5 {[%emt 0:06:05]} 26. dxc5 {[%emt 0:00:15]} bxc5 {[%emt 0:00:45]} 27. Rxc5 {[%emt 0:00:23]} Rxc5 {[%emt 0:00:28]} 28. Rxc5 {[%emt 0:00:28]} e4 {[%emt 0:00:06]} 29. Bxe4 {[%emt 0:05:42]} Nxe4 {[%emt 0:00:11]} 30. Qxe4 {[%emt 0:00:57]} Qxd2 {[%emt 0:00:06]} 31. h3 {[%emt 0:00:06]} Qd1+ {[%emt 0:00:08]} 32. Kh2 {[%emt 0:00:08]} Qd6+ {[%emt 0:00:05]} 0-1

[Event "Skalica SCHAEFFLER Open 2019"]
[Site "Skalica"]
[Date "2019.08.26"]
[Round "3.4"]
[White "Vozarova, Adriana"]
[Black "Matusina, Miroslav"]
[Result "1-0"]
[ECO "B01"]
[WhiteElo "1647"]
[BlackElo "1644"]
[Annotator "NA"]
[PlyCount "73"]
[EventDate "2019.08.25"]
[EventType "swiss"]
[EventCountry "SVK"]
[SourceTitle "playchess.com"]
[Source "ChessBase"]
[SourceQuality "1"]
[TimeControl "40/5400+30:1800+30"]

1. e4 {[%emt 0:00:00]} d5 {[%emt 0:00:00]} 2. exd5 {[%emt 0:00:04]} Qxd5 {[%emt 0:00:16]} 3. Nc3 {[%emt 0:00:32]} Qa5 {[%emt 0:00:13]} 4. d4 {[%emt 0:22:33]} c6 {[%emt 0:26:43]} 5. Nf3 {[%emt 0:00:30]} Nf6 {[%emt 0:00:30]} 6. Bd3 {[%emt 0:00:30]} Bg4 {[%emt 0:00:30]} 7. O-O {[%emt 0:00:30]} Qc7 {[%emt 0:00:30]} 8. Ne4 {[%emt 0:00:30]} Nbd7 {[%emt 0:00:30]} 9. Ng3 {[%emt 0:00:30]} e6 {[%emt 0:00:30]} 10. h3 {[%emt 0:00:30]} Bxf3 {[%emt 0:00:30]} 11. Qxf3 {[%emt 0:00:30]} h6 {[%emt 0:00:30]} 12. Re1 {[%emt 0:00:30]} O-O-O {[%emt 0:00:30]} 13. c3 {[%emt 0:00:30]} g5 {[%emt 0:00:30]} 14. b4 {[%emt 0:00:30]} Bd6 {[%emt 0:00:30]} 15. b5 {[%emt 0:00:30]} cxb5 {[%emt 0:00:30]} 16. Bxb5 {[%emt 0:00:30]} Rhg8 {[%emt 0:00:30]} 17. c4 {[%emt 0:00:30]} g4 {[%emt 0:00:30]} 18. hxg4 {[%emt 0:00:30]} Nxg4 {[%emt 0:00:30]} 19. Ne4 {[%emt 0:00:30]} Bb4 {[%emt 0:00:30]} 20. Bf4 {[%emt 0:10:03]} e5 {[%emt 0:22:18]} 21. Reb1 {[%emt 0:00:30]} exf4 {[%emt 0:00:30]} 22. Rxb4 {[%emt 0:00:30]} Nb6 {[%emt 0:00:30]} 23. c5 {[%emt 0:00:30]} Nd5 {[%emt 0:00:30]} 24. Nd6+ {[%emt 0:00:30]} Rxd6 {[%emt 0:00:30]} 25. cxd6 {[%emt 0:00:30]} Qxd6 {[%emt 0:00:30]} 26. Rc4+ {[%emt 0:00:30]} Kb8 {[%emt 0:00:30]} 27. Rac1 {[%emt 0:00:50]} f5 {[%emt 0:00:53]} 28. Rc5 {[%emt 0:07:19]} Ngf6 {[%emt 0:01:53]} 29. Qb3 {[%emt 0:02:46]} Rd8 {[%emt 0:01:59]} 30. Qc2 {[%emt 0:13:31]} Nb6 {[%emt 0:01:07]} 31. Rxf5 {[%emt 0:03:49]} Nfd5 {[%emt 0:07:11]} 32. Qc5 {[%emt 0:09:13]} a6 {[%emt 0:03:07]} 33. Qxd6+ {[%emt 0:02:29]} Rxd6 {[%emt 0:00:03]} 34. Be2 {[%emt 0:02:47]} Ka7 {[%emt 0:00:03]} 35. Bf3 {[%emt 0:00:19]} Nb4 {[%emt 0:00:09]} 36. a3 {[%emt 0:02:15]} Nd3 {[%emt 0:00:27]} 37. Rc7 {[%emt 0:00:13]} 1-0

[Event "Skalica SCHAEFFLER Open 2019"]
[Site "Skalica"]
[Date "2019.08.26"]
[Round "3.5"]
[White "Benci, Rudolf"]
[Black "Vach, Jozef"]
[Result "0-1"]
[ECO "D00"]
[WhiteElo "1635"]
[BlackElo "1722"]
[Annotator "NA"]
[PlyCount "85"]
[EventDate "2019.08.25"]
[EventType "swiss"]
[EventCountry "SVK"]
[SourceTitle "playchess.com"]
[Source "ChessBase"]
[SourceQuality "1"]
[TimeControl "40/5400+30:1800+30"]

1. d4 {[%emt 0:03:57]} d5 {[%emt 0:01:59]} 2. Bf4 {[%emt 0:00:13]} Nf6 {[%emt 0:00:21]} 3. e3 {[%emt 0:00:07]} e6 {[%emt 0:00:18]} 4. c3 {[%emt 0:00:21]} c6 {[%emt 0:00:24]} 5. Nd2 {[%emt 0:00:00]} Be7 {[%emt 0:00:19]} 6. Bd3 {[%emt 0:00:17]} Nbd7 {[%emt 0:00:37]} 7. Ngf3 {[%emt 0:00:10]} Nh5 {[%emt 0:00:36]} 8. Ne5 {[%emt 0:02:04]} Nxf4 {[%emt 0:00:20]} 9. exf4 {[%emt 0:00:01]} Nf6 {[%emt 0:02:53]} 10. Qe2 {[%emt 0:05:12]} Qb6 {[%emt 0:01:33]} 11. Nb3 {[%emt 0:04:02]} Bd7 {[%emt 0:01:00]} 12. O-O {[%emt 0:04:32]} a5 {[%emt 0:03:40]} 13. a4 {[%emt 0:01:12]} Qxb3 {[%emt 0:00:23]} 14. Nxd7 {[%emt 0:00:45]} Nxd7 {[%emt 0:01:13]} 15. f5 {[%emt 0:01:04]} Nf8 {[%emt 0:03:03]} 16. fxe6 {[%emt 0:00:00]} f6 {[%emt 0:01:35]} 17. c4 {[%emt 0:03:52]} Qb4 {[%emt 0:02:33]} 18. cxd5 {[%emt 0:00:53]} Qxd4 {[%emt 0:01:47]} 19. dxc6 {[%emt 0:02:07]} bxc6 {[%emt 0:00:39]} 20. Rfd1 {[%emt 0:00:50]} Qe5 {[%emt 0:01:24]} 21. Qf3 {[%emt 0:06:30]} Rc8 {[%emt 0:09:04]} 22. Re1 {[%emt 0:06:01]} Qc7 {[%emt 0:01:13]} 23. Rac1 {[%emt 0:00:03]} Ng6 {[%emt 0:01:47]} 24. Rxc6 {[%emt 0:04:24]} Qb7 {[%emt 0:11:37]} 25. Rxc8+ {[%emt 0:02:19]} Qxc8 {[%emt 0:00:09]} 26. Bb5+ {[%emt 0:00:05]} Kf8 {[%emt 0:00:50]} 27. Bd7 {[%emt 0:03:56]} Qc7 {[%emt 0:06:22]} 28. g3 {[%emt 0:09:52]} Bd6 {[%emt 0:00:30]} 29. Re2 {[%emt 0:12:41]} Ke7 {[%emt 0:02:25]} 30. Qe4 {[%emt 0:01:53]} Rb8 {[%emt 0:06:39]} 31. Rc2 {[%emt 0:01:54]} Qb7 {[%emt 0:03:23]} 32. Bc6 {[%emt 0:00:35]} Qb4 {[%emt 0:00:24]} 33. Qe2 {[%emt 0:05:19]} Qb6 {[%emt 0:03:04]} 34. Bd5 {[%emt 0:02:07]} Be5 {[%emt 0:01:29]} 35. b3 {[%emt 0:00:23]} Rd8 {[%emt 0:02:02]} 36. Rc6 {[%emt 0:05:44]} Qb8 {[%emt 0:08:20]} 37. Qc4 {[%emt 0:00:18]} Bd6 {[%emt 0:00:27]} 38. Qe4 {[%emt 0:04:03]} Qb4 {[%emt 0:01:54]} 39. Bc4 {[%emt 0:00:45]} Be5 {[%emt 0:03:17]} 40. Ra6 {[%emt 0:00:47]} Bb8 {[%emt 0:03:58]} 41. h4 {[%emt 0:35:19]} Rd1+ {[%emt 0:32:12]} 42. Kg2 {[%emt 0:01:25]} Ne5 {[%emt 0:06:02]} 43. Bb5 {[%emt 0:02:34]} 0-1

[Event "Skalica SCHAEFFLER Open 2019"]
[Site "Skalica"]
[Date "2019.08.26"]
[Round "3.6"]
[White "Novomeska, Karin"]
[Black "Kanak, Matyas"]
[Result "1/2-1/2"]
[ECO "D55"]
[WhiteElo "1269"]
[BlackElo "1540"]
[Annotator "NA"]
[PlyCount "151"]
[EventDate "2019.08.25"]
[EventType "swiss"]
[EventCountry "SVK"]
[SourceTitle "playchess.com"]
[Source "ChessBase"]
[SourceQuality "1"]
[TimeControl "40/5400+30:1800+30"]

1. d4 {[%emt 0:00:00]} d5 {[%emt 0:08:30]} 2. c4 {[%emt 0:00:00]} c6 {[%emt 0:00:18]} 3. Nc3 {[%emt 0:00:00]} e6 {[%emt 0:00:16]} 4. Nf3 {[%emt 0:00:22]} Nf6 {[%emt 0:00:12]} 5. Bg5 {[%emt 0:00:29]} Nbd7 {[%emt 0:00:07]} 6. e3 {[%emt 0:00:59]} Be7 {[%emt 0:01:10]} 7. cxd5 {[%emt 0:01:34]} exd5 {[%emt 0:00:25]} 8. Bd3 {[%emt 0:01:15]} O-O {[%emt 0:01:57]} 9. O-O {[%emt 0:00:30]} Re8 {[%emt 0:00:11]} 10. Qc2 {[%emt 0:01:10]} h6 {[%emt 0:02:03]} 11. Bxf6 {[%emt 0:14:50]} Bxf6 {[%emt 0:35:53]} 12. Rac1 {[%emt 0:19:04]} Nf8 {[%emt 0:00:30]} 13. h3 {[%emt 0:00:30]} b6 {[%emt 0:00:30]} 14. Ne2 {[%emt 0:04:12]} Bb7 {[%emt 0:01:15]} 15. Qd2 {[%emt 0:07:33]} Rc8 {[%emt 0:00:50]} 16. b4 {[%emt 0:03:12]} Nd7 {[%emt 0:01:02]} 17. Rb1 {[%emt 0:06:37]} g5 {[%emt 0:13:34]} 18. g4 {[%emt 0:06:53]} Bg7 {[%emt 0:02:25]} 19. Bf5 {[%emt 0:12:08]} Rb8 {[%emt 0:02:16]} 20. Bxd7 {[%emt 0:01:04]} Qxd7 {[%emt 0:01:06]} 21. Ng3 {[%emt 0:00:27]} Qe6 {[%emt 0:03:50]} 22. Qd3 {[%emt 0:03:31]} c5 {[%emt 0:01:19]} 23. bxc5 {[%emt 0:04:55]} bxc5 {[%emt 0:00:25]} 24. Qf5 {[%emt 0:00:43]} c4 {[%emt 0:01:32]} 25. Qxe6 {[%emt 0:01:15]} fxe6 {[%emt 0:00:07]} 26. Ne2 {[%emt 0:00:15]} Ba6 {[%emt 0:00:21]} 27. Nc3 {[%emt 0:01:20]} Rb6 {[%emt 0:01:30]} 28. Na4 {[%emt 0:01:21]} Rbb8 {[%emt 0:05:26]} 29. Nc3 {[%emt 0:00:14]} Rec8 {[%emt 0:00:51]} 30. Rxb8 {[%emt 0:01:09]} Rxb8 {[%emt 0:00:05]} 31. Rb1 {[%emt 0:00:03]} Rxb1+ {[%emt 0:01:11]} 32. Nxb1 {[%emt 0:00:03]} Kf7 {[%emt 0:00:05]} 33. Nc3 {[%emt 0:00:55]} Ke7 {[%emt 0:00:05]} 34. Kf1 {[%emt 0:00:46]} Kd6 {[%emt 0:00:05]} 35. Ke2 {[%emt 0:00:46]} e5 {[%emt 0:00:15]} 36. Kd2 {[%emt 0:02:55]} e4 {[%emt 0:09:19]} 37. Ne1 {[%emt 0:00:00]} Kc6 {[%emt 0:01:07]} 38. Nc2 {[%emt 0:00:41]} Bf8 {[%emt 0:00:34]} 39. a3 {[%emt 0:00:37]} Bb7 {[%emt 0:00:56]} 40. Na4 {[%emt 0:02:17]} a5 {[%emt 0:00:12]} 41. Kc3 {[%emt 0:30:23]} Kb5 {[%emt 0:32:45]} 42. Nb2 {[%emt 0:00:47]} Bc6 {[%emt 0:01:17]} 43. Kd2 {[%emt 0:02:22]} Be8 {[%emt 0:00:43]} 44. a4+ {[%emt 0:01:05]} Ka6 {[%emt 0:00:44]} 45. Nd1 {[%emt 0:00:13]} Bb4+ {[%emt 0:00:53]} 46. Nc3 {[%emt 0:00:38]} Bxc3+ {[%emt 0:00:22]} 47. Kxc3 {[%emt 0:00:06]} Bxa4 {[%emt 0:00:05]} 48. Ne1 {[%emt 0:01:18]} Be8 {[%emt 0:01:19]} 49. Nc2 {[%emt 0:00:22]} Kb5 {[%emt 0:00:09]} 50. Na3+ {[%emt 0:00:24]} Ka4 {[%emt 0:00:11]} 51. Nc2 {[%emt 0:00:30]} h5 {[%emt 0:00:06]} 52. Ne1 {[%emt 0:00:30]} hxg4 {[%emt 0:00:49]} 53. hxg4 {[%emt 0:00:10]} Bd7 {[%emt 0:00:00]} 54. f3 {[%emt 0:00:13]} exf3 {[%emt 0:02:54]} 55. Nxf3 {[%emt 0:00:01]} Bxg4 {[%emt 0:00:08]} 56. Nxg5 {[%emt 0:00:26]} Bf5 {[%emt 0:01:18]} 57. Nf3 {[%emt 0:01:16]} Kb5 {[%emt 0:00:11]} 58. Ne1 {[%emt 0:00:50]} a4 {[%emt 0:00:28]} 59. Ng2 {[%emt 0:00:41]} a3 {[%emt 0:00:00]} 60. Nf4 {[%emt 0:00:00]} Be4 {[%emt 0:00:00]} 61. Ne2 {[%emt 0:00:00]} a2 {[%emt 0:00:00]} 62. Kb2 {[%emt 0:00:00]} Bb1 {[%emt 0:00:00]} 63. Nc3+ {[%emt 0:00:00]} Kc6 {[%emt 0:00:00]} 64. Na4 {[%emt 0:00:00]} Bc2 {[%emt 0:00:00]} 65. Nc3 {[%emt 0:00:00]} Bb3 {[%emt 0:00:00]} 66. Ne2 {[%emt 0:00:00]} Kd6 {[%emt 0:00:00]} 67. Nc3 {[%emt 0:00:00]} Ke6 {[%emt 0:00:00]} 68. Ka1 {[%emt 0:00:00]} Kf5 {[%emt 0:00:00]} 69. Nxd5 {[%emt 0:00:00]} Ke4 {[%emt 0:00:00]} 70. Nc3+ {[%emt 0:00:00]} Kd3 {[%emt 0:00:00]} 71. Nd5 {[%emt 0:00:00]} c3 {[%emt 0:00:00]} 72. Nxc3 {[%emt 0:00:00]} Kxc3 {[%emt 0:00:00]} 73. d5 {[%emt 0:00:00]} Bxd5 {[%emt 0:00:00]} 74. e4 {[%emt 0:00:00]} Be6 {[%emt 0:00:00]} 75. e5 {[%emt 0:00:00]} Kd4 {[%emt 0:00:00]} 76. Kb2 {[%emt 0:00:00]} 1/2-1/2

[Event "Skalica SCHAEFFLER Open 2019"]
[Site "Skalica"]
[Date "2019.08.26"]
[Round "3.7"]
[White "Gres, Michal"]
[Black "Kozusnikova, Daniela"]
[Result "0-1"]
[ECO "C24"]
[WhiteElo "1410"]
[BlackElo "1235"]
[Annotator "NA"]
[PlyCount "82"]
[EventDate "2019.08.25"]
[EventType "swiss"]
[EventCountry "SVK"]
[SourceTitle "playchess.com"]
[Source "ChessBase"]
[SourceQuality "1"]
[TimeControl "40/5400+30:1800+30"]

1. e4 {[%emt 0:00:00]} e5 {[%emt 0:05:33]} 2. Bc4 {[%emt 0:00:27]} Nf6 {[%emt 0:00:37]} 3. d3 {[%emt 0:01:32]} Nc6 {[%emt 0:00:52]} 4. Nf3 {[%emt 0:00:37]} d5 {[%emt 0:02:54]} 5. exd5 {[%emt 0:01:53]} Nxd5 {[%emt 0:00:25]} 6. O-O {[%emt 0:01:39]} Bg4 {[%emt 0:01:08]} 7. h3 {[%emt 0:01:40]} Bh5 {[%emt 0:00:55]} 8. Re1 {[%emt 0:01:58]} Qd6 {[%emt 0:05:21]} 9. Bxd5 {[%emt 0:02:39]} Qxd5 {[%emt 0:00:29]} 10. Nc3 {[%emt 0:00:29]} Qd6 {[%emt 0:00:44]} 11. Qe2 {[%emt 0:06:29]} Qe6 {[%emt 0:05:24]} 12. Qe4 {[%emt 0:03:20]} O-O-O {[%emt 0:02:14]} 13. Nxe5 {[%emt 0:15:42]} f5 {[%emt 0:04:50]} 14. Qh4 {[%emt 0:03:37]} g6 {[%emt 0:03:51]} 15. Bg5 {[%emt 0:05:50]} Rd4 {[%emt 0:08:03]} 16. f4 {[%emt 0:00:27]} Nxe5 {[%emt 0:08:28]} 17. Rxe5 {[%emt 0:00:40]} Qxe5 {[%emt 0:00:40]} 18. fxe5 {[%emt 0:01:37]} Rxh4 {[%emt 0:00:38]} 19. Bxh4 {[%emt 0:00:51]} Bh6 {[%emt 0:03:09]} 20. Bf6 {[%emt 0:02:56]} Re8 {[%emt 0:02:17]} 21. Nd5 {[%emt 0:04:42]} f4 {[%emt 0:04:18]} 22. Rf1 {[%emt 0:09:03]} g5 {[%emt 0:03:07]} 23. h4 {[%emt 0:03:02]} gxh4 {[%emt 0:04:55]} 24. Nxf4 {[%emt 0:02:22]} Bf7 {[%emt 0:01:33]} 25. d4 {[%emt 0:06:38]} Bxa2 {[%emt 0:04:16]} 26. b3 {[%emt 0:01:33]} Bb1 {[%emt 0:07:42]} 27. Rxb1 {[%emt 0:01:24]} Bxf4 {[%emt 0:00:40]} 28. Kf2 {[%emt 0:00:56]} Bg3+ {[%emt 0:01:42]} 29. Kf3 {[%emt 0:00:14]} Rg8 {[%emt 0:01:31]} 30. c4 {[%emt 0:01:55]} h5 {[%emt 0:01:21]} 31. d5 {[%emt 0:01:47]} Kd7 {[%emt 0:02:37]} 32. c5 {[%emt 0:01:40]} Rg4 {[%emt 0:01:36]} 33. e6+ {[%emt 0:03:00]} Ke8 {[%emt 0:01:02]} 34. Rf1 {[%emt 0:03:00]} Rb4 {[%emt 0:02:19]} 35. d6 {[%emt 0:01:05]} Rxb3+ {[%emt 0:01:08]} 36. Ke2 {[%emt 0:00:32]} cxd6 {[%emt 0:00:42]} 37. Rd1 {[%emt 0:01:57]} Rb4 {[%emt 0:04:46]} 38. Ke3 {[%emt 0:02:00]} Be5 {[%emt 0:02:15]} 39. Bg5 {[%emt 0:00:51]} Rg4 {[%emt 0:00:30]} 40. Bh6 {[%emt 0:01:11]} dxc5 {[%emt 0:00:32]} 41. Rd7 {[%emt 0:32:13]} Rg6 {[%emt 0:30:48]} 0-1